bitfinex/quotes_BTCUSD_20251219
["timestamp","ask_amount","ask_price","bid_price","bid_amount"]
[1766149512327,0.00572,88075.0,88064.0,0.24083]
[1766149513937,0.00572,88076.0,88064.0,0.25218537]
[1766149514349,0.00572,88076.0,88064.0,0.24083]
[1766149514574,0.00572,88076.0,88064.0,0.25218537]
[1766149514776,0.00572,88076.0,88064.0,0.24083]
[1766149515066,0.00572,88076.0,88064.0,0.30896225]
[1766149515750,0.01135215,88089.0,88068.0,0.0025]
[1766149515924,0.00572,88088.0,88071.0,0.24083]
[1766149516130,0.00572,88087.0,88071.0,0.25218447]
[1766149516281,0.0025,88088.0,88071.0,0.25218447]
[1766149516485,0.00572,88087.0,88071.0,0.25218447]
[1766149516959,0.00572,88087.0,88071.0,0.24083]
[1766149517110,0.00572,88087.0,88071.0,0.25218447]
[1766149518277,0.00572,88087.0,88072.0,0.01135434]
[1766149518709,0.48478189,88091.0,88072.0,0.05677146]
[1766149518710,0.57358,88088.0,88072.0,0.05677146]
[1766149518927,0.00572,88086.0,88072.0,0.0681258]
[1766149519138,0.00572,88086.0,88072.0,0.01135434]
[1766149519357,0.00572,88086.0,88071.0,0.30895667]
[1766149519813,0.00572,88086.0,88072.0,0.01135434]
[1766149520872,0.00572,88086.0,88062.0,0.22711033]
[1766149520873,0.001099,88072.0,88064.0,0.0025]
[1766149521080,0.01707254,88086.0,88070.0,0.0025]
[1766149521497,0.47343,88085.0,88070.0,0.0025]
[1766149521716,0.57358,88084.0,88070.0,0.0025]
[1766149522136,0.57358,88084.0,88069.0,0.01385473]
[1766149522379,1.04701,88084.0,88069.0,0.0025]
[1766149522777,1.04701,88084.0,88069.0,0.07062814]
[1766149523006,1.04701,88084.0,88070.0,0.0113546]
[1766149523328,1.04701,88084.0,88071.0,0.01135447]
[1766149523527,0.61308,88083.0,88070.0,0.0113546]
[1766149523949,0.00572,88082.0,88070.0,0.0113546]
[1766149524286,0.61308,88083.0,88070.0,0.0113546]
[1766149524426,0.00572,88081.0,88070.0,0.0113546]
[1766149525543,0.00572,88081.0,88071.0,0.01135447]
[1766149525891,0.00572,88082.0,88070.0,0.06812755]
[1766149526111,0.00572,88082.0,88071.0,0.01135447]
[1766149526688,0.00572,88082.0,88071.0,0.06812678]
[1766149526886,0.61308,88083.0,88071.0,0.01135447]
[1766149527094,0.00572,88082.0,88071.0,0.01135447]
[1766149527501,0.00572,88082.0,88070.0,0.06812755]
[1766149528325,0.00572,88082.0,88071.0,0.01135447]
[1766149528505,0.6188,88082.0,88069.0,0.0025]
[1766149529675,0.06811415,88088.0,88069.0,0.0025]
[1766149529676,0.05925937,88092.0,88071.0,0.05677237]
[1766149529974,0.02135589,88106.0,88070.0,1.90909158]
[1766149529975,0.45892,88089.0,88074.0,0.24083]
[1766149530174,0.46214,88088.0,88074.0,0.24083]
[1766149530957,0.47349228,88088.0,88074.0,0.24083]
[1766149531668,0.47349228,88088.0,88070.0,1.84668525]
[1766149531669,0.61308,88085.0,88070.0,1.84668525]
[1766149532173,1.0695,88085.0,88070.0,1.84668525]
[1766149534380,1.0695,88085.0,88070.0,1.8466076]
[1766149534583,1.0695,88085.0,88070.0,2.0874376]
[1766149534789,1.0695,88085.0,88070.0,2.6938322]
[1766149535009,0.01707228,88088.0,88072.0,0.24083]
[1766149535222,0.01135241,88087.0,88072.0,0.83587]
[1766149535445,1.03936241,88087.0,88072.0,0.83587]
[1766149535889,0.0681156,88087.0,88072.0,0.83587]
[1766149536169,1.02801,88086.0,88072.0,0.83587]
[1766149539623,0.46233,88086.0,88075.0,0.0025]
[1766149539825,0.00572,88088.0,88077.0,0.24083]
[1766149540577,0.56568,88091.0,88077.0,0.24083]
[1766149540773,0.00927408,88090.0,88077.0,0.24083]
[1766149540978,0.00572,88089.0,88077.0,0.24083]
[1766149541257,0.56568,88091.0,88077.0,0.24083]
[1766149541450,0.00572,88088.0,88077.0,0.24083]
[1766149541633,0.01135189,88091.0,88077.0,0.24083]
[1766149541791,0.02062609,88090.0,88077.0,0.24083]
[1766149541994,1.03156407,88089.0,88077.0,0.24083]
[1766149542193,1.02801,88089.0,88077.0,0.24083]
[1766149542594,0.00572,88090.0,88079.0,0.24083]
[1766149542802,0.00355407,88089.0,88079.0,0.24083]
[1766149544067,0.00572,88093.0,88084.0,0.23728]
[1766149544269,0.00572,88093.0,88084.0,0.83232]
[1766149545014,0.46805,88093.0,88077.0,0.0113537]
[1766149545216,0.56568,88091.0,88080.0,1.8408876]
[1766149545421,0.56568,88091.0,88076.0,0.83804]
[1766149545644,0.56568,88091.0,88078.0,0.05676746]
[1766149545848,0.56568,88091.0,88080.0,0.01135331]
[1766149546044,0.46233,88092.0,88080.0,0.01135331]
[1766149546250,0.06810371,88101.0,88080.0,0.01135331]
[1766149546251,0.46233,88103.0,88085.0,0.60639267]
[1766149546447,0.46233,88103.0,88091.0,0.23728]
[1766149546448,0.00572,88102.0,88091.0,0.23728]
[1766149546854,0.00572,88102.0,88092.0,0.23728]
[1766149547224,0.00572,88102.0,88088.0,0.0025]
[1766149547225,0.001099,88092.0,88088.0,0.0025]
[1766149547875,1.02801,88100.0,88088.0,0.0025]
[1766149547876,0.46233,88100.0,88088.0,0.0025]
[1766149548319,0.46233,88100.0,88088.0,0.01135228]
[1766149548635,0.46233,88100.0,88089.0,0.23728]
[1766149549182,0.46233,88100.0,88090.0,0.05676013]
[1766149549389,0.00572,88102.0,88089.0,0.23728]
[1766149549785,1.02801,88101.0,88089.0,0.23728]
[1766149550615,1.02801,88101.0,88089.0,0.24863215]
[1766149550816,0.46233,88101.0,88089.0,0.84367215]
[1766149551299,0.46233,88101.0,88089.0,0.83232]
[1766149552196,1.02801,88101.0,88089.0,0.23728]
[1766149552624,1.02801,88101.0,88087.0,0.0025]
[1766149553895,0.00572,88102.0,88087.0,0.0025]
[1766149554300,1.02801,88101.0,88087.0,0.0025]
[1766149556976,0.56568,88100.0,88087.0,0.0025]
[1766149557605,0.46233,88099.0,88087.0,0.0025]
[1766149557827,1.02801,88099.0,88087.0,0.0025]
[1766149558336,0.01135125,88096.0,88087.0,0.0025]
[1766149558536,0.001099,88087.0,88086.0,0.00572]
[1766149558650,0.001099,88087.0,88077.0,0.59504]
[1766149558651,0.001099,88087.0,88084.0,0.0025]
[1766149559222,0.01135151,88094.0,88077.0,0.59504]
[1766149559224,0.01134841,88118.0,88098.0,0.06810547]
[1766149559371,0.00050922,88115.0,88106.0,0.05674928]
[1766149559568,0.00622922,88115.0,88106.0,0.06809924]
[1766149559974,1e-08,88120.0,88107.0,0.59504]
[1766149560185,1e-08,88120.0,88107.0,0.01134983]
[1766149560186,0.00572,88119.0,88107.0,0.01134983]
[1766149560390,0.0025,88118.0,88104.0,0.72956]
[1766149560609,1.02801,88119.0,88104.0,0.72966922]
[1766149560814,0.00572,88117.0,88104.0,0.72966922]
[1766149561012,0.0025,88116.0,88105.0,0.74091009]
[1766149561244,0.0025,88116.0,88106.0,0.01134996]
[1766149561661,0.0025,88116.0,88107.0,0.01134983]
[1766149561993,1e-08,88120.0,88112.0,0.0025]
[1766149562162,0.61115496,88136.0,88112.0,0.0025]
[1766149562163,0.0004,88144.0,88125.0,0.13127]
[1766149562390,0.0004,88144.0,88132.0,0.01134661]
[1766149562391,0.00572,88142.0,88132.0,0.01134661]
[1766149562577,0.0004,88144.0,88136.0,0.0113461]
[1766149562745,0.0004,88144.0,88135.0,0.02269246]
[1766149562945,0.0004,88149.0,88135.0,0.02269246]
[1766149563145,0.0004,88149.0,88135.0,0.74780246]
[1766149563360,0.0004,88149.0,88136.0,0.0025]
[1766149563536,0.00076398,88149.0,88136.0,0.0025]
[1766149564351,0.01134455,88148.0,88136.0,0.0025]
[1766149564553,0.01134455,88148.0,88133.0,0.00572]
[1766149564554,0.05672801,88140.0,88134.0,0.0025]
[1766149564859,0.001099,88136.0,88134.0,0.0025]
[1766149565279,0.0113452,88143.0,88136.0,0.0025]
[1766149565478,0.00076398,88149.0,88136.0,0.0025]
[1766149565479,0.05672573,88144.0,88136.0,0.0025]
[1766149565795,0.01134507,88144.0,88136.0,0.0025]
[1766149566094,0.05672514,88145.0,88136.0,0.0025]
[1766149566095,0.05672514,88145.0,88136.0,0.001401]
[1766149566236,0.05672514,88145.0,88124.0,0.01134764]
[1766149566237,0.47533,88130.0,88114.0,0.03408713]
[1766149566452,0.47533,88130.0,88108.0,0.57234]
[1766149566453,1.84981099,88130.0,88115.0,0.00572]
[1766149566654,0.0113479,88122.0,88109.0,0.01]
[1766149566864,0.0113479,88122.0,88099.0,0.0340936]
[1766149566865,0.60261841,88118.0,88099.0,0.04544]
[1766149567072,1.0666,88117.0,88102.0,0.00572]
[1766149567272,0.00572,88122.0,88102.0,0.00572]
[1766149567273,0.00572,88122.0,88108.0,0.70281]
[1766149567486,0.0170679,88122.0,88108.0,0.70853]
[1766149567699,0.07380757,88122.0,88108.0,0.00572]
[1766149567908,1.07794829,88119.0,88108.0,0.00572]
[1766149568412,0.00572,88122.0,88109.0,0.13047]
[1766149568624,0.00572,88122.0,88108.0,0.57806]
[1766149568625,0.00572,88122.0,88110.0,0.70281]
[1766149569036,0.00572,88123.0,88110.0,0.70281]
[1766149570101,0.00572,88123.0,88110.0,0.13047]
[1766149570525,0.00572,88123.0,88111.0,0.70281]
[1766149571132,0.01134803,88121.0,88111.0,0.70281]
[1766149571341,0.00572,88123.0,88111.0,0.70281]
[1766149572691,0.00572,88123.0,88111.0,0.13047]
[1766149573093,0.00572,88123.0,88108.0,0.00572]
[1766149573391,0.00572,88123.0,88109.0,0.72336957]
[1766149573592,0.00572,88123.0,88109.0,0.71202]
[1766149574782,0.00572,88123.0,88110.0,0.02269889]
[1766149575225,0.01134726,88127.0,88110.0,0.02269889]
[1766149575400,0.01706738,88126.0,88110.0,0.02269889]
[1766149575627,0.05673758,88125.0,88110.0,0.02269889]
[1766149575805,0.07380439,88126.0,88109.0,0.71202]
[1766149576003,0.01134751,88125.0,88109.0,0.71202]
[1766149576207,0.0113479,88122.0,88109.0,0.71202]
[1766149576794,0.06808719,88123.0,88109.0,0.71202]
[1766149576795,0.01134777,88123.0,88109.0,0.71202]
[1766149577009,0.01134777,88123.0,88108.0,0.00572]
[1766149577010,0.0113488,88115.0,88108.0,0.00572]
[1766149577218,0.4768,88114.0,88099.0,0.0025]
[1766149577425,0.4768,88114.0,88104.0,0.0025]
[1766149577426,0.44270057,88114.0,88104.0,0.0025]
[1766149577634,0.40860114,88114.0,88104.0,0.0025]
[1766149577838,0.37450171,88114.0,88104.0,0.0025]
[1766149578043,0.30630285,88114.0,88104.0,0.0025]
[1766149578244,0.27220342,88114.0,88104.0,0.0025]
[1766149578357,0.23810399,88114.0,88104.0,0.0025]
[1766149578564,0.20400456,88114.0,88104.0,0.0025]
[1766149578765,0.16990513,88114.0,88104.0,0.0025]
[1766149578977,0.1358057,88114.0,88104.0,0.0025]
[1766149579343,0.10170627,88114.0,88104.0,0.0025]
[1766149579538,0.06760529,88114.0,88104.0,0.0025]
[1766149579742,0.03350431,88114.0,88104.0,0.0025]
[1766149579953,0.010752,88116.0,88104.0,0.0025]
[1766149580330,0.06749538,88116.0,88104.0,0.0025]
[1766149580531,0.010752,88116.0,88104.0,0.0025]
[1766149580725,0.66273139,88117.0,88104.0,0.0025]
[1766149580931,0.01134867,88116.0,88104.0,0.0025]
[1766149581339,0.58892,88116.0,88104.0,0.0025]
[1766149581555,0.00572,88117.0,88104.0,0.48631]
[1766149581766,0.58892,88132.0,88114.0,0.01134893]
[1766149581969,0.58892,88132.0,88108.0,0.04547496]
[1766149581970,0.04568738,88138.0,88123.0,0.48381]
[1766149582172,0.04568738,88138.0,88124.0,0.47503]
[1766149582173,0.0025,88136.0,88124.0,0.47503]
[1766149582813,0.00572,88137.0,88124.0,0.47503]
[1766149582814,0.00572,88137.0,88125.0,0.02269503]
[1766149583026,0.00572,88137.0,88126.0,0.47503]
[1766149583227,0.00596738,88138.0,88126.0,0.47503]
[1766149584589,0.00596738,88138.0,88126.0,0.48578579]
[1766149584795,0.0004,88149.0,88138.0,0.001099]
[1766149585175,0.00572,88146.0,88138.0,0.60598584]
[1766149585372,0.00572,88146.0,88138.0,0.01134584]
[1766149585959,0.00572,88146.0,88138.0,0.06807502]
[1766149586369,0.00572,88146.0,88137.0,0.06807525]
[1766149586605,0.00572,88146.0,88139.0,0.06807428]
[1766149586811,0.00572,88146.0,88139.0,0.01134571]
[1766149587113,0.00076398,88149.0,88137.0,0.06807525]
[1766149587285,0.00076398,88149.0,88136.0,0.0113461]
[1766149587286,1.10855,88148.0,88136.0,0.0113461]
[1766149587490,1.10855,88148.0,88134.0,0.00572]
[1766149587694,0.00076398,88149.0,88136.0,0.0025]
[1766149587695,0.62182,88145.0,88136.0,0.0025]
[1766149587898,0.48673,88146.0,88136.0,0.0025]
[1766149588513,1.10855,88145.0,88136.0,0.0025]
[1766149588736,1.10855,88145.0,88135.0,0.0025]
[1766149592242,0.00024755,88146.0,88135.0,0.0025]
[1766149592444,5.5e-07,88146.0,88139.0,0.47503]
[1766149592946,5.5e-07,88146.0,88135.0,0.0025]
[1766149592947,0.000247,88139.0,88135.0,0.0025]
[1766149593143,5.5e-07,88146.0,88130.0,0.0025]
[1766149593422,5.5e-07,88146.0,88140.0,0.59464]
[1766149593763,5.5e-07,88146.0,88139.0,0.47503]
[1766149594184,4.53e-06,88149.0,88142.0,0.60598532]
[1766149594499,4.53e-06,88159.0,88145.0,1.05647]
[1766149594702,3.68e-06,88159.0,88146.0,0.02268962]
[1766149594900,3.68e-06,88159.0,88142.0,0.01706532]
[1766149594901,0.01134314,88159.0,88143.0,0.0025]
[1766149595101,0.00612,88160.0,88143.0,0.0025]
[1766149595102,0.68634502,88151.0,88143.0,0.0025]
[1766149595300,2.45865195,88160.0,88142.0,0.0025]
[1766149595301,0.61828,88149.0,88142.0,0.0025]
[1766149595507,0.61838905,88149.0,88142.0,0.0025]
[1766149596077,0.01134468,88147.0,88142.0,0.0025]
[1766149596226,0.61838905,88149.0,88142.0,0.0025]
[1766149596430,0.61838905,88149.0,88124.0,0.46183]
[1766149596431,0.05672808,88140.0,88124.0,0.46183]
[1766149596669,0.47219,88146.0,88124.0,0.46183]
[1766149596670,0.61828,88135.0,88124.0,0.00572]
[1766149597702,0.47219,88136.0,88124.0,0.01706764]
[1766149597911,0.47219,88136.0,88125.0,0.01134751]
[1766149598117,0.47219,88136.0,88124.0,0.00572]
[1766149599101,1.09047,88134.0,88124.0,0.00572]
[1766149599422,0.0567346,88130.0,88116.0,0.0025]
[1766149599587,0.01134661,88132.0,88116.0,0.0025]
[1766149599588,1.09047,88129.0,88118.0,0.0025]
[1766149599770,0.47219,88129.0,88118.0,0.0025]
[1766149600886,0.62962481,88146.0,88129.0,0.001099]
[1766149601095,0.47469,88145.0,88132.0,0.46183]
[1766149601296,0.47469,88145.0,88131.0,0.60598674]
[1766149601297,0.0025,88145.0,88137.0,0.50730496]
[1766149601956,0.00010905,88149.0,88145.0,0.001099]
[1766149602157,0.00010905,88149.0,88140.0,0.59464]
[1766149602309,0.00010905,88149.0,88141.0,0.46183]
[1766149603701,0.00010905,88149.0,88140.0,0.59464]
[1766149603702,0.00010905,88149.0,88137.0,0.04547496]
[1766149605066,0.00010905,88149.0,88137.0,0.50730496]
[1766149605231,0.00010905,88149.0,88139.0,0.46183]
[1766149605447,0.00010905,88149.0,88140.0,0.46755]
[1766149605652,0.00010905,88149.0,88140.0,0.47889558]
[1766149606105,0.00010905,88149.0,88140.0,0.46755]
[1766149607116,0.00010905,88149.0,88140.0,1.06219]
[1766149607273,0.00010905,88149.0,88141.0,0.46183]
[1766149610064,0.00024753,88154.0,88140.0,0.00572]
[1766149610407,0.00024753,88154.0,88140.0,0.00608398]
[1766149610408,0.01159131,88154.0,88140.0,0.00608398]
[1766149610528,0.47219,88152.0,88140.0,0.00608398]
[1766149610730,1.09047,88152.0,88140.0,0.00608398]
[1766149616372,0.48353404,88152.0,88140.0,0.00608398]
[1766149616485,0.61828,88149.0,88140.0,0.00608398]
[1766149617771,0.47219,88150.0,88140.0,0.00608398]
[1766149617971,1.22544457,88150.0,88140.0,0.00608398]
[1766149618271,1.09047,88147.0,88140.0,3.98e-06]
[1766149619218,1.28788652,88150.0,88140.0,3.98e-06]
[1766149619429,0.47219,88148.0,88140.0,3.98e-06]
[1766149619641,1.09047,88148.0,88140.0,3.98e-06]
[1766149621460,0.61828,88147.0,88140.0,3.98e-06]
[1766149622512,0.00572,88150.0,88147.0,0.001099]
[1766149622711,0.00608369,88150.0,88139.0,0.48650181]
[1766149622914,0.00608369,88150.0,88139.0,0.46381038]
[1766149623388,0.00608369,88150.0,88140.0,0.59464]
[1766149623570,0.00498469,88150.0,88141.0,0.48452091]
[1766149623773,0.00498469,88150.0,88142.0,0.02269065]
[1766149628793,0.01134442,88149.0,88142.0,0.02269065]
[1766149628969,0.01134442,88149.0,88139.0,0.00198038]
[1766149628970,3.69e-06,88150.0,88147.0,0.59464]
[1766149629174,3.69e-06,88150.0,88147.0,1.08467]
[1766149629372,3.69e-06,88150.0,88147.0,0.49003]
[1766149629721,3.69e-06,88150.0,88143.0,0.59464]
[1766149629879,3.69e-06,88150.0,88143.0,1.08467]
[1766149631808,3.69e-06,88150.0,88140.0,1.22543004]
[1766149632055,3.69e-06,88150.0,88143.0,0.49003]
[1766149632250,3.69e-06,88150.0,88145.0,0.49003]
[1766149636468,3.69e-06,88150.0,88146.0,0.59464]
[1766149636671,1.22e-06,88154.0,88149.0,0.49003]
[1766149636872,1.22e-06,88155.0,88150.0,0.49003]
[1766149638681,1.22e-06,88155.0,88136.0,0.0025]
[1766149638682,0.01134481,88146.0,88136.0,0.0025]
[1766149638824,1.05607,88141.0,88136.0,0.00036369]
[1766149639033,0.01134571,88139.0,88136.0,3.69e-06]
[1766149639256,1.05607,88138.0,88136.0,3.69e-06]
[1766149640647,0.05672986,88137.0,88136.0,3.69e-06]
[1766149641049,0.65094986,88137.0,88136.0,3.69e-06]
[1766149641356,0.59422,88137.0,88136.0,3.69e-06]
[1766149642630,0.46185,88138.0,88136.0,3.69e-06]
[1766149644020,0.00572,88139.0,88136.0,3.69e-06]
[1766149651285,0.01706571,88139.0,88136.0,3.69e-06]
[1766149651506,1.10685571,88139.0,88136.0,3.69e-06]
[1766149651692,1.09551,88139.0,88136.0,3.69e-06]
[1766149651981,1.16358482,88139.0,88136.0,3.69e-06]
[1766149652222,1.09551,88139.0,88136.0,3.69e-06]
[1766149652408,0.49746,88137.0,88136.0,3.69e-06]
[1766149652616,0.64905931,88138.0,88123.0,0.60036]
[1766149652617,0.01134738,88126.0,88123.0,1e-08]
[1766149652867,0.01134738,88126.0,88109.0,0.08154996]
[1766149652868,0.01134957,88109.0,88097.0,0.10191574]
[1766149653060,0.0025,88134.0,88097.0,0.10191574]
[1766149653061,0.01135048,88102.0,88097.0,0.00010922]
[1766149653212,0.01135048,88102.0,88090.0,0.00572]
[1766149653213,0.50318,88101.0,88090.0,0.00572]
[1766149653411,1.08979,88100.0,88090.0,0.00572]
[1766149655159,1.08979,88100.0,88091.0,0.0025]
[1766149655983,0.00572,88101.0,88091.0,0.0025]
[1766149656329,0.63424996,88106.0,88091.0,0.0025]
[1766149656330,0.05674531,88113.0,88091.0,0.0025]
[1766149656532,0.01134983,88107.0,88093.0,0.46308]
[1766149656727,0.01134957,88109.0,88093.0,0.46308]
[1766149656728,0.00572,88106.0,88095.0,1.03377]
[1766149656927,0.00572,88106.0,88096.0,0.46058]
[1766149659954,0.00572,88106.0,88090.0,0.00572]
[1766149659955,0.464789,88096.0,88090.0,0.00572]
[1766149660126,1.08659,88095.0,88085.0,0.00572]
[1766149660325,1.07998786,88095.0,88085.0,0.00572]
[1766149660504,0.46369,88095.0,88085.0,0.00572]
[1766149662060,0.46369,88095.0,88086.0,0.0025]
[1766149662265,0.46369,88095.0,88079.0,1.04512344]
[1766149662266,1.08659,88087.0,88067.0,0.46058]
[1766149662481,1.08659,88087.0,88053.0,0.0002]
[1766149662482,1.08659,88085.0,88070.0,0.0213546]
[1766149662649,0.001099,88086.0,88074.0,0.0025]
[1766149662851,0.00572,88088.0,88080.0,0.57319]
[1766149663043,0.00572,88088.0,88081.0,0.46058]
[1766149664328,0.00572,88088.0,88070.0,1.23543004]
[1766149664329,0.01135383,88076.0,88057.0,0.57319]
[1766149664528,0.46369,88074.0,88058.0,0.00572]
[1766149664729,0.46369,88074.0,88059.0,0.0025]
[1766149665391,1.09794408,88074.0,88058.0,0.00572]
[1766149665548,1.08659,88074.0,88059.0,0.0025]
[1766149665871,1.08659,88074.0,88059.0,0.01385602]
[1766149666238,1.08659,88074.0,88058.0,0.00572]
[1766149666432,1.08659,88074.0,88060.0,1.23678593]
[1766149666681,0.46369,88074.0,88061.0,0.46058]
[1766149667037,0.00572,88076.0,88062.0,0.57319]
[1766149667240,0.01135395,88075.0,88062.0,0.57319]
[1766149667485,0.01707383,88076.0,88062.0,0.57319]
[1766149667681,0.00572,88076.0,88062.0,1.03377]
[1766149667916,0.04544,88093.0,88076.0,0.001099]
[1766149668058,1.08659,88104.0,88086.0,0.01135254]
[1766149668267,1.08659,88104.0,88090.0,1.22543004]
[1766149668268,0.00572,88103.0,88090.0,1.22543004]
[1766149668464,0.01135009,88105.0,88091.0,0.48328379]
[1766149668697,0.0113497,88108.0,88091.0,0.48328379]
[1766149668698,0.00572,88104.0,88092.0,0.02270353]
[1766149669097,0.6909967,88110.0,88092.0,0.02842353]
[1766149669297,0.00010908,88104.0,88092.0,0.02842353]
[1766149670079,0.00010908,88104.0,88093.0,0.05675818]
[1766149670293,0.00010908,88104.0,88094.0,0.02270302]
[1766149670739,0.00010908,88104.0,88094.0,0.46058]
[1766149671054,0.0025,88108.0,88095.0,0.48328276]
[1766149671258,0.01134983,88107.0,88095.0,0.46068908]
[1766149671489,0.0138497,88108.0,88095.0,0.46068908]
[1766149671691,0.0025,88108.0,88095.0,0.46068908]
[1766149671820,0.05924871,88108.0,88095.0,0.46068908]
[1766149672024,0.0025,88108.0,88095.0,0.46068908]
[1766149672446,0.0138497,88108.0,88095.0,0.46068908]
[1766149672649,0.0025,88108.0,88095.0,0.46068908]
[1766149673934,0.068099,88107.0,88095.0,0.46068908]
[1766149674136,0.0138497,88108.0,88095.0,0.46068908]
[1766149674287,0.0025,88108.0,88095.0,0.46068908]
[1766149677063,0.69099561,88113.0,88096.0,0.01135125]
[1766149677064,0.6229,88113.0,88096.0,0.01135125]
[1766149677265,0.00572,88112.0,88108.0,0.001099]
[1766149677502,0.00572,88112.0,88100.0,1.03377]
[1766149677503,0.00572,88111.0,88100.0,1.03377]
[1766149678168,0.0025,88114.0,88100.0,1.03377]
[1766149678373,0.00572,88111.0,88100.0,1.03377]
[1766149680117,0.01134944,88110.0,88097.0,0.00572]
[1766149680332,0.05674847,88109.0,88097.0,0.00572]
[1766149680559,0.01134944,88110.0,88097.0,0.00572]
[1766149680735,1.16040629,88111.0,88097.0,0.00572]
[1766149680932,0.01134944,88110.0,88097.0,0.00572]
[1766149681134,0.46369,88109.0,88097.0,0.00572]
[1766149681345,0.00572,88111.0,88098.0,0.46058]
[1766149681538,0.00572,88111.0,88099.0,0.5173338]
[1766149681939,0.00572,88111.0,88100.0,0.01135073]
[1766149682140,0.46369,88113.0,88111.0,0.001099]
[1766149682340,0.00572,88112.0,88111.0,0.001099]
[1766149682542,0.46369,88111.0,88097.0,0.00572]
[1766149682744,0.00572,88112.0,88099.0,0.58454086]
[1766149683087,0.00572,88112.0,88099.0,1.10187488]
[1766149683291,0.00572,88112.0,88101.0,0.0113506]
[1766149683499,0.00572,88112.0,88104.0,0.01135022]
[1766149683687,0.01134726,88127.0,88107.0,0.47192983]
[1766149683688,0.00572,88120.0,88107.0,0.47192983]
[1766149683952,1.08909,88125.0,88111.0,0.46058]
[1766149683953,1.08659,88125.0,88111.0,0.46058]
[1766149684152,1.09231,88125.0,88111.0,0.46058]
[1766149684699,1.10365751,88125.0,88111.0,0.46058]
[1766149684899,1.16039524,88125.0,88111.0,0.46058]
[1766149685934,1.10365751,88125.0,88111.0,0.46058]
[1766149687324,1.09231,88125.0,88111.0,0.46058]
[1766149687513,1.10365751,88125.0,88111.0,0.46058]
[1766149688024,1.09231,88125.0,88111.0,0.46058]
[1766149689070,0.00572,88124.0,88111.0,0.46058]
[1766149689271,1.08659,88125.0,88111.0,0.46058]
[1766149689272,0.00572,88123.0,88111.0,0.46058]
[1766149690234,0.00572,88123.0,88111.0,0.47192932]
[1766149690511,0.00572,88123.0,88111.0,0.46058]
[1766149696484,0.00572,88123.0,88108.0,0.07381695]
[1766149696485,0.62432,88121.0,88108.0,0.00572]
[1766149696679,0.49908,88116.0,88108.0,0.00572]
[1766149696879,0.01706777,88123.0,88108.0,0.00572]
[1766149696880,0.49908,88114.0,88108.0,0.00572]
[1766149697123,0.00572,88118.0,88107.0,0.0025]
[1766149697124,1.1234,88112.0,88107.0,0.0025]
[1766149699917,0.62432,88117.0,88107.0,0.0025]
[1766149700137,1.1234,88115.0,88107.0,0.0025]
[1766149700367,0.001099,88107.0,88089.0,0.57273]
[1766149700545,0.001099,88107.0,88088.0,0.49274228]
[1766149700546,0.62432,88101.0,88088.0,0.48139]
[1766149700748,0.62432,88101.0,88078.0,0.02135357]
[1766149700749,0.62432,88092.0,88080.0,0.00572]
[1766149701005,1.12344955,88092.0,88080.0,0.00572]
[1766149701944,1.12344955,88092.0,88081.0,0.0025]
[1766149702167,1.12344955,88092.0,88080.0,0.00572]
[1766149702999,1.12344955,88092.0,88081.0,0.0025]
[1766149703664,1.12344955,88092.0,88080.0,0.00572]
[1766149703665,0.49912955,88092.0,88080.0,0.00572]
[1766149703867,0.001099,88081.0,88080.0,0.00572]
[1766149704091,0.001099,88081.0,88080.0,0.00822]
[1766149704291,0.49908,88090.0,88081.0,0.0025]
[1766149704493,1.1234,88090.0,88081.0,0.0025]
[1766149704875,0.00572,88090.0,88081.0,0.0025]
[1766149705103,1.1234,88087.0,88075.0,0.0025]
[1766149705333,0.001099,88081.0,88075.0,0.0025]
[1766149705567,1.1234,88087.0,88075.0,0.0025]
[1766149706859,0.00572,88090.0,88076.0,0.48139]
[1766149707059,0.00572,88090.0,88078.0,0.0025]
[1766149707901,0.00572,88090.0,88081.0,0.07061887]
[1766149708202,0.00572,88090.0,88082.0,0.01135305]
[1766149708398,4.955e-05,88092.0,88081.0,0.01385318]
[1766149708399,4.955e-05,88092.0,88083.0,0.57273]
[1766149708740,0.49908,88104.0,88081.0,0.02520637]
[1766149708741,0.01135086,88099.0,88086.0,0.48139]
[1766149708988,0.63004,88098.0,88086.0,0.48139]
[1766149709189,1.1234,88098.0,88081.0,0.01385318]
[1766149709331,0.00572,88097.0,88083.0,0.49274292]
[1766149709528,0.00572,88097.0,88083.0,0.48139]
[1766149710101,0.62432,88096.0,88083.0,0.48139]
[1766149710876,1.1234,88096.0,88083.0,0.48139]
[1766149714111,1.1234,88096.0,88083.0,0.49274292]
[1766149714314,1.1234,88096.0,88083.0,0.48139]
[1766149715869,1.1234,88096.0,88083.0,0.49274292]
[1766149716048,1.1234,88096.0,88083.0,0.48139]
[1766149716243,1.1234,88096.0,88083.0,0.49274292]
[1766149716446,1.1234,88096.0,88083.0,0.48139]
[1766149716611,0.00572,88095.0,88084.0,0.51252559]
[1766149716815,0.00572,88095.0,88084.0,0.48982]
[1766149717117,0.00572,88095.0,88085.0,0.02270534]
[1766149719162,0.00572,88095.0,88085.0,0.03405801]
[1766149719939,0.00572,88095.0,88085.0,0.02270534]
[1766149722585,0.00572,88095.0,88084.0,0.48982]
[1766149722793,1.07052,88095.0,88084.0,0.48982]
[1766149722998,1.0648,88095.0,88084.0,0.48982]
[1766149723204,0.00572,88094.0,88084.0,0.48982]
[1766149723397,1.0648,88095.0,88084.0,0.48982]
[1766149723604,0.00572,88094.0,88084.0,0.48982]
[1766149725834,0.00572,88094.0,88084.0,0.50117279]
[1766149726036,0.00572,88094.0,88084.0,0.48982]
[1766149727349,0.00572,88094.0,88085.0,0.02270534]
[1766149727510,0.00572,88094.0,88085.0,0.52387801]
[1766149727724,0.00572,88094.0,88085.0,0.50117267]
[1766149727921,0.00572,88094.0,88085.0,0.48982]
[1766149730112,0.00572,88095.0,88087.0,0.01135241]
[1766149730312,0.00572,88095.0,88086.0,0.50117254]
[1766149730466,0.00572,88095.0,88086.0,0.48982]
[1766149730788,0.00572,88095.0,88086.0,1.06458]
[1766149732358,0.06810167,88105.0,88086.0,1.06458]
[1766149732359,0.0113497,88108.0,88093.0,0.57476]
[1766149732579,0.0113497,88108.0,88091.0,0.0025]